[Event "WCCC U10 2019"]
[Site "Weifang"]
[Date "2019.08.22"]
[Round "2.9"]
[White "Sodbileg, Uranjargal"]
[Black "Wongso, Steve"]
[Result "1/2-1/2"]
[ECO "C55"]
[WhiteElo "1419"]
[BlackElo "1765"]
[Annotator "NA"]
[PlyCount "128"]
[EventDate "2019.08.21"]
[EventType "swiss"]
[EventCountry "CHN"]
[SourceTitle "playchess.com"]
[Source "ChessBase"]
[SourceQuality "1"]
[TimeControl "40/5400+30:1800+30"]

1. e4 {[%emt 0:00:00]} e5 {[%emt 0:00:00]} 2. Nf3 {[%emt 0:00:00]} Nc6 {[%emt 0:00:06]} 3. Bc4 {[%emt 0:00:18]} Nf6 {[%emt 0:00:09]} 4. d3 {[%emt 0:00:18]} Be7 {[%emt 0:00:30]} 5. c3 {[%emt 0:00:25]} O-O {[%emt 0:00:17]} 6. Bb3 {[%emt 0:00:12]} d6 {[%emt 0:00:13]} 7. Nbd2 {[%emt 0:00:12]} Na5 {[%emt 0:01:06]} 8. Bc2 {[%emt 0:00:11]} c5 {[%emt 0:00:27]} 9. O-O {[%emt 0:00:57]} Nc6 {[%emt 0:00:07]} 10. Re1 {[%emt 0:00:20]} h6 {[%emt 0:00:23]} 11. Nf1 {[%emt 0:00:13]} Be6 {[%emt 0:00:24]} 12. Ng3 {[%emt 0:00:15]} Rc8 {[%emt 0:00:53]} 13. h3 {[%emt 0:02:27]} Re8 {[%emt 0:00:25]} 14. Bd2 {[%emt 0:05:18]} Bf8 {[%emt 0:00:36]} 15. a3 {[%emt 0:02:25]} Qc7 {[%emt 0:03:19]} 16. Nh4 {[%emt 0:00:53]} d5 {[%emt 0:00:35]} 17. Qf3 {[%emt 0:00:55]} Qd8 {[%emt 0:08:16]} 18. Rad1 {[%emt 0:07:47]} d4 {[%emt 0:06:02]} 19. Bc1 {[%emt 0:08:40]} g6 {[%emt 0:02:14]} 20. Qe2 {[%emt 0:00:53]} b5 {[%emt 0:08:07]} 21. Nf3 {[%emt 0:07:14]} Bg7 {[%emt 0:18:58]} 22. Nf1 {[%emt 0:11:34]} Nh5 {[%emt 0:04:08]} 23. c4 {[%emt 0:07:58]} bxc4 {[%emt 0:02:59]} 24. dxc4 {[%emt 0:00:09]} Na5 {[%emt 0:00:35]} 25. b3 {[%emt 0:00:32]} Qb6 {[%emt 0:01:40]} 26. Rd3 {[%emt 0:01:58]} Kh7 {[%emt 0:04:19]} 27. Kh2 {[%emt 0:03:31]} f5 {[%emt 0:01:31]} 28. Nh4 {[%emt 0:00:29]} fxe4 {[%emt 0:05:37]} 29. Qxe4 {[%emt 0:00:14]} Bf7 {[%emt 0:01:45]} 30. Rf3 {[%emt 0:00:28]} Nf6 {[%emt 0:00:12]} 31. Rxf6 {[%emt 0:02:36]} Qxf6 {[%emt 0:00:33]} 32. Ng3 {[%emt 0:00:17]} Qc6 {[%emt 0:09:36]} 33. Qd3 {[%emt 0:00:56]} Bf6 {[%emt 0:04:42]} 34. Nf3 {[%emt 0:01:24]} Nb7 {[%emt 0:01:42]} 35. Qd2 {[%emt 0:00:24]} Bg7 {[%emt 0:00:56]} 36. Be4 {[%emt 0:00:21]} Qd7 {[%emt 0:01:13]} 37. Nh5 {[%emt 0:00:29]} Rh8 {[%emt 0:01:54]} 38. Nxg7 {[%emt 0:01:41]} Kxg7 {[%emt 0:00:09]} 39. Nxe5 {[%emt 0:00:05]} Qc7 {[%emt 0:00:51]} 40. f4 {[%emt 0:01:24]} Nd6 {[%emt 0:00:58]} 41. Bc2 {[%emt 0:00:10]} Rce8 {[%emt 0:01:46]} 42. Qd3 {[%emt 0:00:20]} Re6 {[%emt 0:01:58]} 43. Bb2 {[%emt 0:00:49]} Rhe8 {[%emt 0:01:16]} 44. b4 {[%emt 0:00:21]} Nf5 {[%emt 0:02:40]} 45. bxc5 {[%emt 0:01:46]} Qxc5 {[%emt 0:07:26]} 46. g4 {[%emt 0:00:35]} Rxe5 {[%emt 0:03:37]} 47. fxe5 {[%emt 0:02:27]} Bxc4 {[%emt 0:00:56]} 48. Qd2 {[%emt 0:01:37]} Nh4 {[%emt 0:05:12]} 49. Kg3 {[%emt 0:01:27]} g5 {[%emt 0:03:50]} 50. Qxd4 {[%emt 0:00:46]} Qxd4 {[%emt 0:01:38]} 51. Bxd4 {[%emt 0:00:05]} Be6 {[%emt 0:00:20]} 52. Rf1 {[%emt 0:00:31]} Rc8 {[%emt 0:01:21]} 53. Bf5 {[%emt 0:02:15]} Rf8 {[%emt 0:01:22]} 54. Bxa7 {[%emt 0:01:44]} Nxf5+ {[%emt 0:00:29]} 55. gxf5 {[%emt 0:00:06]} Rxf5 {[%emt 0:00:14]} 56. Rxf5 {[%emt 0:00:16]} Bxf5 {[%emt 0:00:06]} 57. h4 {[%emt 0:00:17]} gxh4+ {[%emt 0:00:04]} 58. Kxh4 {[%emt 0:00:13]} Bd7 {[%emt 0:00:12]} 59. Bd4 {[%emt 0:00:10]} Kf7 {[%emt 0:00:03]} 60. Kh5 {[%emt 0:00:07]} Ke6 {[%emt 0:00:04]} 61. Kxh6 {[%emt 0:00:07]} Kd5 {[%emt 0:00:45]} 62. Bb2 {[%emt 0:00:16]} Kc4 {[%emt 0:00:53]} 63. Kg7 {[%emt 0:00:15]} Kb3 {[%emt 0:00:07]} 64. Bc1 {[%emt 0:00:05]} Ka4 1/2-1/2

[Event "WCCC U10 2019"]
[Site "Weifang"]
[Date "2019.08.22"]
[Round "2.10"]
[White "Lee, William Joseph"]
[Black "Mayank Chakraborty"]
[Result "0-1"]
[ECO "E11"]
[WhiteElo "1395"]
[BlackElo "1731"]
[Annotator "NA"]
[PlyCount "88"]
[EventDate "2019.08.21"]
[EventType "swiss"]
[EventCountry "CHN"]
[SourceTitle "playchess.com"]
[Source "ChessBase"]
[SourceQuality "1"]
[TimeControl "40/5400+30:1800+30"]

1. d4 {[%emt 0:00:00]} Nf6 {[%emt 0:00:00]} 2. c4 {[%emt 0:00:00]} e6 {[%emt 0:00:03]} 3. Nf3 {[%emt 0:00:00]} Bb4+ {[%emt 0:00:10]} 4. Bd2 {[%emt 0:01:00]} Qe7 {[%emt 0:00:13]} 5. Nc3 {[%emt 0:04:41]} Bxc3 {[%emt 0:00:56]} 6. Bxc3 {[%emt 0:00:43]} Ne4 {[%emt 0:00:04]} 7. Qc2 {[%emt 0:00:57]} f5 {[%emt 0:01:44]} 8. e3 {[%emt 0:01:21]} O-O {[%emt 0:00:21]} 9. Bd3 {[%emt 0:00:49]} Nxc3 {[%emt 0:00:18]} 10. Qxc3 {[%emt 0:01:43]} d6 {[%emt 0:02:38]} 11. O-O {[%emt 0:01:43]} b6 {[%emt 0:04:32]} 12. Rac1 {[%emt 0:06:39]} Bb7 {[%emt 0:01:33]} 13. d5 {[%emt 0:17:09]} e5 {[%emt 0:02:45]} 14. e4 {[%emt 0:00:00]} f4 {[%emt 0:00:29]} 15. Rfd1 {[%emt 0:05:26]} Nd7 {[%emt 0:00:08]} 16. b4 {[%emt 0:00:41]} Kh8 {[%emt 0:04:48]} 17. Bf1 {[%emt 0:02:26]} h6 {[%emt 0:02:58]} 18. Nd2 {[%emt 0:03:21]} a5 {[%emt 0:00:24]} 19. a3 {[%emt 0:01:13]} a4 {[%emt 0:00:02]} 20. f3 {[%emt 0:02:22]} Rf6 {[%emt 0:00:11]} 21. Nb1 {[%emt 0:01:03]} g5 {[%emt 0:01:40]} 22. Kf2 {[%emt 0:08:56]} Rg6 {[%emt 0:02:59]} 23. Ke2 {[%emt 0:03:10]} g4 {[%emt 0:00:46]} 24. Kd2 {[%emt 0:01:01]} Qh4 {[%emt 0:00:10]} 25. Kc2 {[%emt 0:07:04]} Qxh2 {[%emt 0:00:52]} 26. Nd2 {[%emt 0:03:55]} Rag8 {[%emt 0:02:54]} 27. fxg4 {[%emt 0:08:04]} Nf6 {[%emt 0:03:14]} 28. Nf3 {[%emt 0:06:00]} Qg3 {[%emt 0:00:18]} 29. Rd3 {[%emt 0:04:55]} Qxg4 {[%emt 0:03:16]} 30. Nh2 {[%emt 0:00:16]} Qd7 {[%emt 0:00:44]} 31. Re1 {[%emt 0:01:34]} Rg3 {[%emt 0:00:18]} 32. Nf3 {[%emt 0:02:48]} Qe8 {[%emt 0:03:13]} 33. Nh4 {[%emt 0:01:18]} Bc8 {[%emt 0:01:17]} 34. c5 {[%emt 0:00:00]} Qh5 {[%emt 0:00:00]} 35. Nf3 {[%emt 0:00:00]} bxc5 {[%emt 0:00:00]} 36. bxc5 {[%emt 0:00:00]} Ba6 {[%emt 0:00:00]} 37. Rdd1 {[%emt 0:00:00]} Bxf1 {[%emt 0:00:00]} 38. Rxf1 {[%emt 0:00:00]} Rxg2+ {[%emt 0:00:00]} 39. Kc1 {[%emt 0:00:00]} Nxe4 {[%emt 0:00:00]} 40. Qa5 {[%emt 0:00:00]} Nxc5 {[%emt 0:00:00]} 41. Qxc7 {[%emt 0:15:31]} Nb3+ {[%emt 0:05:38]} 42. Kb1 {[%emt 0:00:15]} Qg6+ {[%emt 0:00:08]} 43. Rd3 {[%emt 0:02:37]} Qxd3+ {[%emt 0:00:02]} 44. Qc2 {[%emt 0:00:05]} Qxc2# {[%emt 0:00:04]} 0-1

[Event "WCCC U10 2019"]
[Site "Weifang"]
[Date "2019.08.23"]
[Round "3.1"]
[White "Materia, Marco"]
[Black "Deladerriere, Apollo"]
[Result "1-0"]
[ECO "A77"]
[WhiteElo "2236"]
[BlackElo "1690"]
[Annotator "ChessBase"]
[PlyCount "129"]
[EventDate "2019.08.21"]
[EventType "swiss"]
[EventCountry "CHN"]
[SourceTitle "playchess.com"]
[Source "ChessBase"]
[SourceQuality "1"]
[TimeControl "40/5400+30:1800+30"]

1. d4 {[%emt 0:00:00]} e6 {[%emt 0:00:00]} 2. c4 {[%emt 0:00:00]} c5 {[%emt 0:00:00]} 3. d5 {[%emt 0:00:00]} exd5 {[%emt 0:00:05]} 4. cxd5 {[%emt 0:00:00]} d6 {[%emt 0:00:10]} 5. Nc3 {[%emt 0:00:00]} Nf6 {[%emt 0:00:13]} 6. Nf3 {[%emt 0:00:04]} g6 {[%emt 0:00:24]} 7. Nd2 {[%emt 0:00:07]} Bg7 {[%emt 0:00:22]} 8. e4 {[%emt 0:00:06]} O-O {[%emt 0:00:32]} 9. Be2 {[%emt 0:00:05]} Re8 {[%emt 0:01:07]} 10. O-O {[%emt 0:00:09]} a6 {[%emt 0:01:57]} 11. a4 {[%emt 0:00:06]} Nbd7 {[%emt 0:00:26]} 12. Re1 {[%emt 0:02:01]} Qe7 {[%emt 0:11:52]} 13. h3 {[%emt 0:07:47]} g5 {[%emt 0:01:53]} 14. Nf1 {[%emt 0:06:11]} h6 {[%emt 0:00:59]} 15. Ng3 {[%emt 0:04:40]} Ne5 {[%emt 0:02:27]} 16. Be3 {[%emt 0:00:39]} Bd7 {[%emt 0:06:16]} 17. Rb1 {[%emt 0:01:03]} Rac8 {[%emt 0:03:24]} 18. Qd2 {[%emt 0:01:55]} Ng6 {[%emt 0:02:05]} 19. Qd1 {[%emt 0:06:52]} Qe5 {[%emt 0:14:31]} 20. Bg4 {[%emt 0:03:28]} Nxg4 {[%emt 0:03:44]} 21. hxg4 {[%emt 0:00:27]} Qe7 {[%emt 0:04:25]} 22. Nf5 {[%emt 0:03:26]} Bxf5 {[%emt 0:00:17]} 23. exf5 {[%emt 0:02:42]} Ne5 {[%emt 0:01:06]} 24. f3 {[%emt 0:04:31]} Qd7 {[%emt 0:02:53]} 25. Ne4 {[%emt 0:09:59]} Qd8 {[%emt 0:10:14]} 26. Bf2 {[%emt 0:19:21]} Rc7 {[%emt 0:24:10]} 27. b4 {[%emt 0:02:35]} c4 {[%emt 0:00:27]} 28. Bb6 {[%emt 0:00:42]} Nd3 {[%emt 0:00:27]} 29. Bxc7 {[%emt 0:01:38]} Bd4+ {[%emt 0:01:31]} 30. Kh2 {[%emt 0:01:38]} Qxc7 {[%emt 0:03:27]} 31. Nf6+ {[%emt 0:00:46]} Bxf6 {[%emt 0:00:06]} 32. Rxe8+ {[%emt 0:00:05]} Kg7 {[%emt 0:00:31]} 33. Qe2 {[%emt 0:14:50]} Nf4 {[%emt 0:01:32]} 34. Qe4 {[%emt 0:02:54]} c3 {[%emt 0:02:47]} 35. g3 {[%emt 0:03:57]} Qb6 {[%emt 0:00:33]} 36. gxf4 {[%emt 0:01:53]} Qf2+ {[%emt 0:00:07]} 37. Kh1 {[%emt 0:00:12]} c2 {[%emt 0:00:51]} 38. Rc1 {[%emt 0:00:32]} Qh4+ {[%emt 0:00:10]} 39. Kg2 {[%emt 0:00:46]} gxf4 {[%emt 0:00:04]} 40. Rxc2 {[%emt 0:00:13]} Qg3+ {[%emt 0:00:06]} 41. Kf1 {[%emt 0:30:13]} Qh3+ {[%emt 0:30:10]} 42. Ke2 {[%emt 0:01:45]} Qg2+ {[%emt 0:00:15]} 43. Kd3 {[%emt 0:00:41]} Qf1+ {[%emt 0:00:19]} 44. Qe2 {[%emt 0:00:00]} Qb1 {[%emt 0:00:00]} 45. Re4 {[%emt 0:00:00]} Qb3+ {[%emt 0:00:00]} 46. Kd2 {[%emt 0:00:00]} Qxa4 {[%emt 0:00:00]} 47. Ke1 {[%emt 0:00:00]} Qa1+ {[%emt 0:00:00]} 48. Qd1 {[%emt 0:00:00]} Qa3 {[%emt 0:00:00]} 49. Kf1 {[%emt 0:00:00]} Qa4 {[%emt 0:00:00]} 50. Kg2 {[%emt 0:00:00]} Bg5 {[%emt 0:00:00]} 51. Qd4+ {[%emt 0:00:00]} Bf6 {[%emt 0:00:00]} 52. Qd3 {[%emt 0:00:00]} Bg5 {[%emt 0:00:00]} 53. Rce2 {[%emt 0:00:00]} a5 {[%emt 0:00:00]} 54. b5 {[%emt 0:00:00]} Qa1 {[%emt 0:00:00]} 55. Qd4+ {[%emt 0:00:00]} Qxd4 {[%emt 0:00:00]} 56. Rxd4 {[%emt 0:00:00]} b6 {[%emt 0:00:00]} 57. Re8 {[%emt 0:00:00]} a4 {[%emt 0:00:00]} 58. Rxa4 {[%emt 0:00:00]} h5 {[%emt 0:00:00]} 59. gxh5 {[%emt 0:00:00]} f6 {[%emt 0:00:00]} 60. Ra6 {[%emt 0:00:00]} Kf7 {[%emt 0:00:00]} 61. Re6 {[%emt 0:00:00]} Bh6 {[%emt 0:00:00]} 62. Ra7+ {[%emt 0:00:00]} Kg8 {[%emt 0:00:00]} 63. Re8+ {[%emt 0:00:00]} Bf8 {[%emt 0:00:00]} 64. Kh1 {[%emt 0:00:00]} Kh8 {[%emt 0:00:00]} 65. Rxf8# {[%emt 0:00:00]} 1-0

[Event "WCCC U10 2019"]
[Site "Weifang"]
[Date "2019.08.23"]
[Round "3.2"]
[White "Ilamparthi A R"]
[Black "Pham, Tran Gia Phuc"]
[Result "1/2-1/2"]
[ECO "E18"]
[WhiteElo "1984"]
[BlackElo "1645"]
[Annotator "NA"]
[PlyCount "136"]
[EventDate "2019.08.21"]
[EventType "swiss"]
[EventCountry "CHN"]
[SourceTitle "playchess.com"]
[Source "ChessBase"]
[SourceQuality "1"]
[TimeControl "40/5400+30:1800+30"]

1. Nf3 {[%emt 0:00:00]} Nf6 {[%emt 0:00:00]} 2. g3 {[%emt 0:00:00]} b6 {[%emt 0:00:52]} 3. Bg2 {[%emt 0:00:02]} Bb7 {[%emt 0:00:15]} 4. O-O {[%emt 0:00:09]} e6 {[%emt 0:00:03]} 5. d4 {[%emt 0:00:09]} Be7 {[%emt 0:00:14]} 6. c4 {[%emt 0:00:08]} O-O {[%emt 0:00:59]} 7. Nc3 {[%emt 0:00:24]} Ne4 {[%emt 0:01:15]} 8. Nxe4 {[%emt 0:06:23]} Bxe4 {[%emt 0:00:59]} 9. Bf4 {[%emt 0:00:07]} d6 {[%emt 0:01:13]} 10. Rc1 {[%emt 0:02:03]} Nd7 {[%emt 0:01:17]} 11. Qd2 {[%emt 0:02:27]} h6 {[%emt 0:03:29]} 12. b4 {[%emt 0:04:18]} f5 {[%emt 0:01:44]} 13. h4 {[%emt 0:02:26]} Nf6 {[%emt 0:00:24]} 14. Ne1 {[%emt 0:03:53]} Bxg2 {[%emt 0:05:20]} 15. Nxg2 {[%emt 0:00:08]} Ne4 {[%emt 0:00:10]} 16. Qd3 {[%emt 0:02:35]} g5 {[%emt 0:01:19]} 17. f3 {[%emt 0:01:49]} gxf4 {[%emt 0:05:15]} 18. fxe4 {[%emt 0:00:08]} fxg3 {[%emt 0:00:41]} 19. Qxg3+ {[%emt 0:00:46]} Kh8 {[%emt 0:00:30]} 20. exf5 {[%emt 0:02:22]} exf5 {[%emt 0:00:25]} 21. Qe3 {[%emt 0:02:31]} Rf6 {[%emt 0:01:40]} 22. Rxf5 {[%emt 0:01:45]} Rg6 {[%emt 0:00:14]} 23. h5 {[%emt 0:04:20]} Bg5 {[%emt 0:00:30]} 24. Qe4 {[%emt 0:02:58]} Rg7 {[%emt 0:07:27]} 25. Rcf1 {[%emt 0:01:25]} Re7 {[%emt 0:06:59]} 26. Qf3 {[%emt 0:06:00]} Qe8 {[%emt 0:03:15]} 27. Nf4 {[%emt 0:06:29]} Bxf4 {[%emt 0:00:29]} 28. Qxf4 {[%emt 0:00:08]} Rg7+ {[%emt 0:03:42]} 29. Kf2 {[%emt 0:00:21]} Kh7 {[%emt 0:01:19]} 30. Rf6 {[%emt 0:02:13]} Rg5 {[%emt 0:01:11]} 31. Rxh6+ {[%emt 0:01:39]} Kxh6 {[%emt 0:00:48]} 32. Qf6+ {[%emt 0:00:05]} Kh7 {[%emt 0:00:12]} 33. Qxg5 {[%emt 0:00:05]} Qe4 {[%emt 0:00:40]} 34. Qg6+ {[%emt 0:15:58]} Qxg6 {[%emt 0:00:11]} 35. hxg6+ {[%emt 0:00:04]} Kxg6 {[%emt 0:00:11]} 36. Ke3 {[%emt 0:00:06]} Re8+ {[%emt 0:01:17]} 37. Kd3 {[%emt 0:00:14]} c5 {[%emt 0:02:31]} 38. bxc5 {[%emt 0:08:05]} bxc5 {[%emt 0:00:07]} 39. e3 {[%emt 0:01:34]} Re7 {[%emt 0:08:16]} 40. Rf8 {[%emt 0:00:19]} Kg5 {[%emt 0:02:14]} 41. Rd8 {[%emt 0:30:50]} cxd4 {[%emt 0:31:08]} 42. exd4 {[%emt 0:00:50]} Re6 {[%emt 0:00:10]} 43. Rf8 {[%emt 0:00:26]} Kg6 {[%emt 0:04:31]} 44. c5 {[%emt 0:04:21]} dxc5 {[%emt 0:03:04]} 45. dxc5 {[%emt 0:00:18]} Kg7 {[%emt 0:10:13]} 46. Rf2 {[%emt 0:00:17]} Rf6 {[%emt 0:07:39]} 47. Rxf6 {[%emt 0:00:17]} Kxf6 {[%emt 0:00:05]} 48. Kd4 {[%emt 0:00:06]} Ke6 {[%emt 0:00:04]} 49. a4 {[%emt 0:00:04]} Ke7 {[%emt 0:00:39]} 50. Ke5 {[%emt 0:03:37]} Kd7 {[%emt 0:00:09]} 51. Kd5 {[%emt 0:03:32]} Kc7 {[%emt 0:00:05]} 52. a5 {[%emt 0:02:29]} Kd7 {[%emt 0:00:08]} 53. Kc4 {[%emt 0:03:02]} Kc6 {[%emt 0:00:06]} 54. Kb4 {[%emt 0:00:04]} Kc7 {[%emt 0:00:12]} 55. Kb3 {[%emt 0:01:38]} Kb7 {[%emt 0:00:08]} 56. Kc3 {[%emt 0:00:10]} Kc7 {[%emt 0:00:08]} 57. Kb4 {[%emt 0:00:08]} Kc6 {[%emt 0:00:06]} 58. Kc4 {[%emt 0:00:29]} Kc7 {[%emt 0:00:05]} 59. Kd5 {[%emt 0:00:34]} Kd7 {[%emt 0:00:04]} 60. c6+ {[%emt 0:00:33]} Kc7 {[%emt 0:00:04]} 61. Kc5 {[%emt 0:00:26]} Kd8 {[%emt 0:01:06]} 62. Kc4 {[%emt 0:02:17]} Kc7 {[%emt 0:00:05]} 63. Kb5 {[%emt 0:00:03]} Kc8 {[%emt 0:00:41]} 64. Ka6 {[%emt 0:00:57]} Kc7 {[%emt 0:00:08]} 65. Kxa7 {[%emt 0:00:26]} Kxc6 {[%emt 0:00:07]} 66. a6 {[%emt 0:00:02]} Kc7 {[%emt 0:00:04]} 67. Ka8 {[%emt 0:00:03]} Kc8 {[%emt 0:00:04]} 68. a7 {[%emt 0:00:04]} Kc7 {[%emt 0:00:03]} 1/2-1/2

[Event "WCCC U10 2019"]
[Site "Weifang"]
[Date "2019.08.23"]
[Round "3.3"]
[White "Wei, Jianzhou"]
[Black "Bharadia Yash"]
[Result "1/2-1/2"]
[ECO "D37"]
[WhiteElo "1656"]
[BlackElo "1963"]
[Annotator "NA"]
[PlyCount "78"]
[EventDate "2019.08.21"]
[EventType "swiss"]
[EventCountry "CHN"]
[SourceTitle "playchess.com"]
[Source "ChessBase"]
[SourceQuality "1"]
[TimeControl "40/5400+30:1800+30"]

1. d4 {[%emt 0:00:00]} Nf6 {[%emt 0:00:00]} 2. c4 {[%emt 0:00:00]} e6 {[%emt 0:00:00]} 3. Nf3 {[%emt 0:00:00]} d5 {[%emt 0:00:04]} 4. Nc3 {[%emt 0:00:00]} Be7 {[%emt 0:00:26]} 5. Bf4 {[%emt 0:00:10]} c5 {[%emt 0:07:14]} 6. dxc5 {[%emt 0:00:52]} Bxc5 {[%emt 0:00:58]} 7. e3 {[%emt 0:03:11]} O-O {[%emt 0:00:39]} 8. Qc2 {[%emt 0:00:26]} Qa5 {[%emt 0:02:58]} 9. Rd1 {[%emt 0:00:51]} Nc6 {[%emt 0:08:22]} 10. a3 {[%emt 0:00:03]} Be7 {[%emt 0:04:11]} 11. Be2 {[%emt 0:11:05]} dxc4 {[%emt 0:13:46]} 12. Bxc4 {[%emt 0:00:15]} Nh5 {[%emt 0:03:53]} 13. Bd6 {[%emt 0:01:01]} Bxd6 {[%emt 0:02:39]} 14. Rxd6 {[%emt 0:00:10]} Ne5 {[%emt 0:04:03]} 15. Be2 {[%emt 0:07:40]} Nf6 {[%emt 0:05:23]} 16. O-O {[%emt 0:00:53]} Ng6 {[%emt 0:03:19]} 17. Rfd1 {[%emt 0:03:55]} Qc7 {[%emt 0:04:40]} 18. Qb1 {[%emt 0:10:39]} Qe7 {[%emt 0:04:08]} 19. h3 {[%emt 0:08:01]} b6 {[%emt 0:04:00]} 20. Bb5 {[%emt 0:02:15]} Rb8 {[%emt 0:01:32]} 21. Bc6 {[%emt 0:01:23]} Bb7 {[%emt 0:05:16]} 22. Bxb7 {[%emt 0:08:01]} Rxb7 {[%emt 0:00:37]} 23. Qd3 {[%emt 0:02:53]} h6 {[%emt 0:03:51]} 24. b4 {[%emt 0:08:08]} Rc7 {[%emt 0:04:35]} 25. Nb5 {[%emt 0:04:27]} Rcc8 {[%emt 0:02:11]} 26. Nc3 {[%emt 0:03:07]} Kh8 {[%emt 0:02:47]} 27. b5 {[%emt 0:08:41]} Nd5 {[%emt 0:05:23]} 28. Rc6 {[%emt 0:00:13]} Rcd8 {[%emt 0:00:34]} 29. Qc4 {[%emt 0:05:31]} Qxa3 {[%emt 0:01:36]} 30. Nxd5 {[%emt 0:00:13]} exd5 {[%emt 0:00:10]} 31. Rxd5 {[%emt 0:00:34]} Rxd5 {[%emt 0:00:33]} 32. Qxd5 {[%emt 0:01:11]} Qa1+ {[%emt 0:00:52]} 33. Kh2 {[%emt 0:00:06]} Qb2 {[%emt 0:00:10]} 34. Kg1 {[%emt 0:02:18]} Qa1+ {[%emt 0:00:45]} 35. Kh2 {[%emt 0:00:03]} Qb2 {[%emt 0:00:07]} 36. Kg1 {[%emt 0:02:29]} Qa1+ {[%emt 0:01:04]} 37. Kh2 {[%emt 0:00:01]} Qb2 38. Kg3 Ne7 {[%emt 0:00:08]} 39. Qd6 {[%emt 0:00:02]} Nf5+ {Qd5 Ne7} 1/2-1/2

[Event "WCCC U10 2019"]
[Site "Weifang"]
[Date "2019.08.23"]
[Round "3.4"]
[White "Daakshin, Arun"]
[Black "Kong, Xiangrui"]
[Result "0-1"]
[ECO "D36"]
[WhiteElo "1628"]
[BlackElo "1889"]
[Annotator "NA"]
[PlyCount "88"]
[EventDate "2019.08.21"]
[EventType "swiss"]
[EventCountry "CHN"]
[SourceTitle "playchess.com"]
[Source "ChessBase"]
[SourceQuality "1"]
[TimeControl "40/5400+30:1800+30"]

1. d4 {[%emt 0:00:00]} d5 {[%emt 0:00:00]} 2. c4 {[%emt 0:00:00]} e6 {[%emt 0:00:00]} 3. Nc3 {[%emt 0:00:06]} Nf6 {[%emt 0:00:00]} 4. cxd5 {[%emt 0:00:07]} exd5 {[%emt 0:00:00]} 5. Bg5 {[%emt 0:00:12]} c6 {[%emt 0:00:00]} 6. Nf3 {[%emt 0:00:06]} Be7 {[%emt 0:00:00]} 7. e3 {[%emt 0:00:06]} Nbd7 {[%emt 0:00:00]} 8. Bd3 {[%emt 0:00:07]} Nh5 {[%emt 0:00:38]} 9. Bxe7 {[%emt 0:00:16]} Qxe7 {[%emt 0:00:05]} 10. O-O {[%emt 0:00:17]} O-O {[%emt 0:00:12]} 11. Qd2 {[%emt 0:00:33]} Nhf6 {[%emt 0:00:57]} 12. Qc2 {[%emt 0:00:21]} Re8 {[%emt 0:00:51]} 13. Rfe1 {[%emt 0:00:56]} Ne4 {[%emt 0:03:23]} 14. Nd2 {[%emt 0:01:12]} f5 {[%emt 0:01:09]} 15. f3 {[%emt 0:00:42]} Nxd2 {[%emt 0:01:13]} 16. Qxd2 {[%emt 0:00:05]} Nf6 {[%emt 0:00:07]} 17. Rac1 {[%emt 0:00:49]} Bd7 {[%emt 0:05:16]} 18. a3 {[%emt 0:00:31]} Rac8 {[%emt 0:03:19]} 19. b4 {[%emt 0:00:08]} Qd6 {[%emt 0:01:27]} 20. Kh1 {[%emt 0:03:41]} Re7 {[%emt 0:03:20]} 21. Rb1 {[%emt 0:04:50]} Rce8 {[%emt 0:00:41]} 22. a4 {[%emt 0:00:13]} Kh8 {[%emt 0:06:37]} 23. a5 {[%emt 0:02:07]} f4 {[%emt 0:07:11]} 24. e4 {[%emt 0:00:25]} dxe4 {[%emt 0:00:59]} 25. Bxe4 {[%emt 0:00:17]} b6 {[%emt 0:07:29]} 26. Red1 {[%emt 0:01:47]} Be6 {[%emt 0:03:21]} 27. axb6 {[%emt 0:00:52]} axb6 {[%emt 0:00:16]} 28. b5 {[%emt 0:01:06]} Bd5 {[%emt 0:04:52]} 29. Bc2 {[%emt 0:01:13]} Re3 {[%emt 0:01:47]} 30. Rdc1 {[%emt 0:03:32]} c5 {[%emt 0:09:14]} 31. dxc5 {[%emt 0:00:16]} Qxc5 {[%emt 0:00:36]} 32. Na4 {[%emt 0:05:04]} Qd6 {[%emt 0:03:08]} 33. Qd4 {[%emt 0:00:34]} Rxf3 {[%emt 0:02:11]} 34. Qxb6 {[%emt 0:01:43]} Qe5 {[%emt 0:01:52]} 35. Kg1 {[%emt 0:06:32]} Re3 {[%emt 0:01:01]} 36. Rf1 {[%emt 0:03:55]} Qg5 {[%emt 0:00:29]} 37. g3 {[%emt 0:02:06]} fxg3 {[%emt 0:01:06]} 38. h3 {[%emt 0:00:57]} Re2 {[%emt 0:00:18]} 39. Rxf6 {[%emt 0:00:48]} gxf6 {[%emt 0:00:49]} 40. Be4 {[%emt 0:00:23]} R8xe4 {[%emt 0:00:40]} 41. Qd8+ {[%emt 0:30:13]} Re8 {[%emt 0:30:10]} 42. Qxe8+ {[%emt 0:00:23]} Rxe8 {[%emt 0:00:05]} 43. Kf1 {[%emt 0:00:10]} Qf4+ {[%emt 0:00:04]} 44. Kg1 {[%emt 0:00:04]} Qf2# {[%emt 0:00:02] Ra1} 0-1

[Event "WCCC U10 2019"]
[Site "Weifang"]
[Date "2019.08.23"]
[Round "3.5"]
[White "Mayank Chakraborty"]
[Black "Raghu, Ram Reddy Seelam"]
[Result "1/2-1/2"]
[ECO "C82"]
[WhiteElo "1731"]
[BlackElo "1631"]
[Annotator "NA"]
[PlyCount "78"]
[EventDate "2019.08.21"]
[EventType "swiss"]
[EventCountry "CHN"]
[SourceTitle "playchess.com"]
[Source "ChessBase"]
[SourceQuality "1"]
[TimeControl "40/5400+30:1800+30"]

1. e4 {[%emt 0:00:00]} e5 {[%emt 0:00:00]} 2. Nf3 {[%emt 0:00:02]} Nc6 {[%emt 0:00:00]} 3. Bb5 {[%emt 0:00:04]} a6 {[%emt 0:00:00]} 4. Ba4 {[%emt 0:00:08]} Nf6 {[%emt 0:00:14]} 5. O-O {[%emt 0:00:11]} Nxe4 {[%emt 0:00:52]} 6. d4 {[%emt 0:00:08]} b5 {[%emt 0:00:07]} 7. Bb3 {[%emt 0:00:06]} d5 {[%emt 0:00:04]} 8. dxe5 {[%emt 0:00:09]} Be6 {[%emt 0:00:12]} 9. Nbd2 {[%emt 0:00:09]} Nc5 {[%emt 0:02:09]} 10. c3 {[%emt 0:00:02]} Be7 {[%emt 0:03:20]} 11. Bc2 {[%emt 0:00:48]} d4 {[%emt 0:02:22]} 12. Nb3 {[%emt 0:00:47]} dxc3 {[%emt 0:01:58]} 13. Nxc5 {[%emt 0:01:07]} Bxc5 {[%emt 0:06:01]} 14. Be4 {[%emt 0:00:23]} Qxd1 {[%emt 0:01:16]} 15. Rxd1 {[%emt 0:00:06]} Bd7 {[%emt 0:02:14]} 16. bxc3 {[%emt 0:03:45]} O-O-O {[%emt 0:06:07]} 17. Bg5 {[%emt 0:00:19]} Ne7 {[%emt 0:01:57]} 18. a4 {[%emt 0:11:09]} h6 {[%emt 0:18:33]} 19. Bxe7 {[%emt 0:01:04]} Bxe7 {[%emt 0:00:14]} 20. axb5 {[%emt 0:00:10]} Bxb5 {[%emt 0:00:27]} 21. Nd4 {[%emt 0:00:31]} Bc5 {[%emt 0:03:23]} 22. Nxb5 {[%emt 0:01:00]} Rxd1+ {[%emt 0:00:12]} 23. Rxd1 {[%emt 0:00:17]} axb5 {[%emt 0:00:21]} 24. Rd5 {[%emt 0:00:09]} Bb6 {[%emt 0:01:21]} 25. Rxb5 {[%emt 0:00:10]} Rd8 {[%emt 0:00:18]} 26. Rd5 {[%emt 0:00:08]} Rxd5 {[%emt 0:07:52]} 27. Bxd5 {[%emt 0:00:10]} f6 {[%emt 0:00:07]} 28. e6 {[%emt 0:01:03]} Kd8 {[%emt 0:00:31]} 29. g4 {[%emt 0:02:43]} Ke7 {[%emt 0:00:27]} 30. Kg2 {[%emt 0:00:06]} c6 {[%emt 0:00:09]} 31. Bxc6 {[%emt 0:02:33]} Kxe6 {[%emt 0:00:07]} 32. Be8 {[%emt 0:00:11]} f5 {[%emt 0:01:13]} 33. h3 {[%emt 0:00:09]} fxg4 {[%emt 0:00:13]} 34. hxg4 {[%emt 0:00:02]} Ba5 {[%emt 0:00:29]} 35. c4 {[%emt 0:00:01]} Bc3 {[%emt 0:00:14]} 36. f4 {[%emt 0:00:08]} Kd6 {[%emt 0:00:15]} 37. Kf3 {[%emt 0:00:14]} Kc5 {[%emt 0:00:18]} 38. Bf7 {[%emt 0:00:02]} Bb2 {[%emt 0:00:16]} 39. Ke4 {[%emt 0:00:04]} Ba1 {[%emt 0:00:19]} 1/2-1/2